fUST/lending_fUST_20260128
["ID","MTS","AMOUNT","RATE_DAILY","PERIOD"]
[403779054,1769536236239,-2000.0,0.00014916,2]
[403779055,1769536236248,-2000.0,0.00014916,2]
[403779056,1769536236446,-2000.0,0.00014916,2]
[403779057,1769536236456,-51342.99260131,0.0001499,2]
[403779058,1769536236465,-151.0,0.000152,2]
[403779059,1769536236474,-7907.32714227,0.00015235,2]
[403779060,1769536236483,-600.0,0.00015316,2]
[403779061,1769536236493,-10000.0,0.00015342,2]
[403779062,1769536236503,-10000.04,0.00015342,2]
[403779063,1769536236515,-10000.0,0.00015342,2]
[403779064,1769536236526,-1500.0,0.00015342,2]
[403779065,1769536236536,-10000.0,0.00015442,2]
[403779066,1769536236548,-10000.0,0.00015442,2]
[403779067,1769536236558,-500.0,0.00015464,2]
[403779068,1769536236568,-500.0,0.00015464,2]
[403779069,1769536236579,-500.0,0.00015464,2]
[403779070,1769536236588,-500.0,0.00015464,2]
[403779071,1769536236598,-500.0,0.00015464,2]
[403779072,1769536236607,-151.0,0.000155,2]
[403779073,1769536236616,-521.36585976,0.00015718,2]
[403779074,1769536236626,-151.0,0.000158,2]
[403779075,1769536236636,-588.0,0.00015944,2]
[403779076,1769536236645,-3570.92,0.0001595,2]
[403779077,1769536236655,-1000.0,0.00016051,2]
[403779078,1769536236664,-151.0,0.000161,2]
[403779079,1769536236674,-151.0,0.000164,2]
[403779080,1769536236683,-200.0,0.00016438,2]
[403779081,1769536236694,-1041.66666667,0.00016522,2]
[403779082,1769536236703,-151.0,0.000167,2]
[403779083,1769536236713,-30000.0,0.00016855,2]
[403779084,1769536236723,-553.64373807,0.00016855,2]
[403779085,1769536236732,-201.93286099,0.00016855,2]
[403779086,1769536236741,-209.40437684,0.00016855,2]
[403779087,1769536236750,-217.15233878,0.00016855,2]
[403779088,1769536236760,-225.18697532,0.00016855,2]
[403779089,1769536236769,-233.51889341,0.00016855,2]
[403779090,1769536236778,-242.15909246,0.00016855,2]
[403779091,1769536236788,-251.11897888,0.00016855,2]
[403779092,1769536236796,-260.4103811,0.00016855,2]
[403779093,1769536236806,-270.0455652,0.00016855,2]
[403779094,1769536236815,-280.03725112,0.00016855,2]
[403779095,1769536236823,-290.39862941,0.00016855,2]
[403779096,1769536236833,-301.1433787,0.00016855,2]
[403779097,1769536236844,-337.15308738,0.00016855,2]
[403779098,1769536236853,-2674.60743027,0.00016855,2]
[403779099,1769536236862,-4285.11,0.00017014,2]
[403779100,1769536236871,-31110.0,0.00017403,2]
[403779101,1769536236881,-574.12855637,0.00017403,2]
[403779102,1769536236891,-2773.56790519,0.00017403,2]
[403779103,1769536236901,-1000.0,0.00017656,2]
[403779104,1769536236911,-244.0,0.00017656,2]
[403779105,1769536236920,-590.37016473,0.00017718,2]
[403779106,1769536236929,-227.08583231,0.0001782,2]
[403779107,1769536236939,-431.34564327,0.0001782,2]
[403779108,1769536236948,-160.0,0.00017887,3]
[403779109,1769536236958,-10132.15421234,0.00017951,2]
[403779110,1769536236969,-595.37131296,0.00017951,2]
[403779111,1769536236978,-2876.18991768,0.00017951,2]
[403779112,1769536236988,-4999.29,0.00018077,2]
[403779113,1769536236999,-729.0,0.000184,2]
[403779114,1769536237009,-617.40005154,0.00018499,2]
[403779115,1769536237018,-2982.60894464,0.00018499,2]
[403779116,1769536237029,-7907.32714227,0.00018515,2]
[403779117,1769536237039,-1000.0,0.00018641,5]
[403779118,1769536237053,-365.46611524,0.00018758,2]
[403779119,1769536237064,-303.10001603,0.000189,2]
[403779120,1769536237073,-303.10001603,0.000189,2]
[403779121,1769536237083,-670.086,0.00018964,2]
[403779122,1769536237094,-2155.187,0.00018964,2]
[403779123,1769536237105,-1372.504,0.00018964,2]
[403779124,1769536237119,-150.277,0.00018964,2]
[403779125,1769536237128,-500.0,0.00019,7]
[403779127,1769536237139,-500.0,0.00019,7]
[403779129,1769536237148,-500.0,0.00019,7]
[403779130,1769536237158,-500.0,0.00019,7]
[403779131,1769536237167,-500.0,0.00019,7]
[403779132,1769536237177,-500.0,0.00019,7]
[403779133,1769536237188,-500.0,0.00019,7]
[403779134,1769536237197,-500.0,0.00019,7]
[403779135,1769536237206,-500.0,0.00019,7]
[403779136,1769536237215,-500.0,0.00019,7]
[403779137,1769536237224,-500.0,0.00019,7]
[403779139,1769536237233,-500.0,0.00019,7]
[403779140,1769536237243,-500.0,0.00019,7]
[403779141,1769536237252,-500.0,0.00019,7]
[403779142,1769536237263,-500.0,0.00019,7]
[403779143,1769536237272,-500.0,0.00019,7]
[403779144,1769536237282,-500.0,0.00019,7]
[403779145,1769536237292,-500.0,0.00019,7]
[403779146,1769536237302,-500.0,0.00019,7]
[403779147,1769536237311,-500.0,0.00019,7]
[403779149,1769536237320,-500.0,0.00019,7]
[403779151,1769536237330,-500.0,0.00019,7]
[403779153,1769536237339,-500.0,0.00019,7]
[403779154,1769536237349,-500.0,0.00019,7]
[403779155,1769536237359,-500.0,0.00019,7]
[403779156,1769536237368,-500.0,0.00019,7]
[403779157,1769536237378,-500.0,0.00019,7]
[403779158,1769536237389,-500.0,0.00019,7]
[403779159,1769536237398,-500.0,0.00019,7]
[403779160,1769536237407,-500.0,0.00019,7]
[403779161,1769536237417,-500.0,0.00019,7]
[403779162,1769536237427,-500.0,0.00019,7]
[403779163,1769536237436,-500.0,0.00019,7]
[403779164,1769536237446,-500.0,0.00019,7]
[403779166,1769536237455,-500.0,0.00019,7]
[403779168,1769536237464,-500.0,0.00019,7]
[403779170,1769536237474,-500.0,0.00019,7]
[403779172,1769536237483,-500.0,0.00019,7]
[403779174,1769536237492,-500.0,0.00019,7]
[403779176,1769536237501,-500.0,0.00019,7]
[403779178,1769536237510,-500.0,0.00019,7]
[403779180,1769536237519,-500.0,0.00019,7]
[403779182,1769536237528,-500.0,0.00019,7]
[403779184,1769536237537,-500.0,0.00019,7]
[403779186,1769536237547,-500.0,0.00019,7]
[403779188,1769536237556,-500.0,0.00019,7]
[403779190,1769536237566,-500.0,0.00019,7]
[403779192,1769536237575,-500.0,0.00019,7]
[403779194,1769536237584,-500.0,0.00019,7]
[403779196,1769536237593,-500.0,0.00019,7]
[403779198,1769536237603,-500.0,0.00019,7]
[403779200,1769536237612,-500.0,0.00019,7]
[403779203,1769536237627,-500.0,0.00019,7]
[403779204,1769536237636,-500.0,0.00019,7]
[403779206,1769536237645,-500.0,0.00019,7]
[403779208,1769536237654,-500.0,0.00019,7]
[403779210,1769536237663,-500.0,0.00019,7]
[403779212,1769536237673,-284.54,0.00019,7]
[403779214,1769536237682,-1674.06477,0.00019,2]
[403779216,1769536237691,-552.09981779,0.00019047,2]
[403779218,1769536237701,-3092.96547559,0.00019047,2]
[403779220,1769536237710,-303.10001603,0.00019089,2]
[403779222,1769536237720,-303.10001603,0.00019089,2]
[403779224,1769536237730,-5713.47,0.0001914,2]
[403779227,1769536237739,-151.0,0.00019178,2]
[403779229,1769536237748,-151.0,0.00019178,2]
[403779231,1769536237758,-151.0,0.00019178,2]
[403779233,1769536237768,-151.0,0.00019178,2]
[403779235,1769536237778,-151.0,0.00019178,2]
[403779237,1769536237788,-151.0,0.00019178,2]
[403779239,1769536237797,-151.0,0.00019178,2]
[403779240,1769536237807,-151.0,0.00019178,2]
[403779242,1769536237816,-151.0,0.00019178,2]
[403779244,1769536237825,-151.0,0.00019178,2]
[403779246,1769536237834,-252.597039,0.00019178,2]
[403779248,1769536237844,-252.597039,0.00019178,2]
[403779250,1769536237853,-252.597039,0.00019178,2]
[403779252,1769536237862,-252.597039,0.00019178,2]
[403779255,1769536237873,-160.0,0.0001918,4]
[403779257,1769536237884,-337.43433056,0.00019259,2]
[403779259,1769536237893,-303.10001603,0.00019278,2]
[403779261,1769536237903,-303.10001603,0.00019278,2]
[403779263,1769536237913,-167.96,0.000193,2]
[403779265,1769536237922,-729.0,0.0001936,2]
[403779267,1769536237931,-729.0,0.0001936,2]
[403779269,1769536237940,-1000.0,0.00019421,2]
[403779271,1769536237949,-492.0,0.00019421,2]
[403779273,1769536237958,-200.0,0.0001946,2]
[403779275,1769536237967,-160.0,0.0001946,2]
[403779276,1769536237976,-30625.5452257,0.00019461,2]
[403779278,1769536237987,-3149.6528931,0.00019461,2]
[403779280,1769536237996,-303.10001603,0.00019467,2]
[403779283,1769536238006,-298.49895803,0.00019467,2]
[403779284,1769536238015,-1000.0,0.000195,2]
[403779286,1769536238024,-24419.7595955,0.00019543,2]
[403779288,1769536238033,-357.47,0.000196,2]
[403779291,1769536238047,-171.22,0.000196,2]
[403779293,1769536238057,-325675.35767331,0.000196,2]
[403779295,1769536238066,-188.278276,0.000196,2]
[403779297,1769536238076,-209.036747,0.000196,2]
[403779299,1769536238087,-188.278276,0.000196,2]
[403779301,1769536238096,-209.036747,0.000196,2]
[403779302,1769536238106,-200.0,0.00019608,2]
[403779304,1769536238118,-160.0,0.00019608,2]
[403779306,1769536238127,-82563.732787,0.00019609,7]
[403779309,1769536238137,-190.842461,0.00019635,2]
[403779311,1769536238147,-339.44301533,0.00019639,2]
[403779312,1769536238156,-303.10001603,0.00019656,2]
[403779315,1769536238166,-309.3423,0.00019657,7]
[403779316,1769536238175,-1169.41755,0.00019658,7]
[403779318,1769536238185,-269.80239,0.00019658,7]
[403779320,1769536238195,-729.0,0.0001968,2]
[403779323,1769536238205,-729.0,0.0001968,2]
[403779325,1769536238215,-729.0,0.0001968,2]
[403779327,1769536238225,-619.178116,0.0001968,7]
[403779329,1769536238235,-457.851391,0.0001968,7]
[403779331,1769536238244,-320.0,0.0001968,2]
[403779333,1769536238253,-729.0,0.0001968,2]
[403779335,1769536238262,-2416.009636,0.00019712,7]
[403779337,1769536238271,-659.3744697,0.00019718,2]
[403779339,1769536238281,-2246.33084024,0.00019718,7]
[403779390,1769536238782,-188.278276,0.000196,2]
[403779392,1769536238791,-209.036747,0.000196,2]
[403779394,1769536238800,-188.278276,0.000196,2]
[403779396,1769536238809,-209.036747,0.000196,2]
[403779398,1769536238818,-387.668637,0.000196,2]
[403779400,1769536238826,-303.37863341,0.000196,2]
[403779402,1769536238838,-84.29000359,0.000196,2]
[403779404,1769536238847,-25594.47615676,0.00019718,7]
[403779406,1769536238856,-168.0,0.00019729,2]
[403779408,1769536238866,-336.787463,0.00019729,7]
[403779410,1769536238875,-330.806617,0.00019729,7]
[403779412,1769536238885,-565.59647965,0.00019745,4]
[403779414,1769536238894,-420.94042216,0.00019745,4]
[403779416,1769536238904,-19436.17124308,0.000198,3]
[403779418,1769536238914,-3093.422999,0.00019845,7]
[403779420,1769536238924,-168.055272,0.00019845,7]
[403779422,1769536238934,-168.096149,0.00019845,7]
[403779424,1769536238943,-1715.213557,0.00019845,7]
[403779426,1769536238952,-307.42489,0.00019845,7]
[403779428,1769536238961,-454.65002405,0.00019845,4]
[403779430,1769536238971,-168.0,0.00019898,2]
[403779432,1769536238980,-3074.248899,0.000199,7]
[403779434,1769536238989,-1645.161661,0.0001994,5]
[403779436,1769536238998,-1000.0,0.0001996,5]
[403779438,1769536239008,-8729.175516,0.0001998,7]
[403779440,1769536239018,-1342.948419,0.0001998,7]
[403779442,1769536239027,-1000.0,0.0001998,5]
[403779443,1769536239036,-160.0,0.00019999,2]
[403779445,1769536239050,-924109.55376356,0.0002,2]
[403779447,1769536239059,-150.0,0.0002,2]
[403779449,1769536239069,-6962.41,0.0002,2]
[403779452,1769536239079,-7709.0,0.0002,7]
[403779454,1769536239090,-384125.73234929,0.0002,2]
[403779455,1769536239100,-154.87851982,0.0002,2]
[403779458,1769536239111,-186.89,0.0002,7]
[403779459,1769536239121,-205.46382306,0.0002,2]
[403779462,1769536239134,-8978.44425789,0.0002,14]
[403779464,1769536239144,-605438.62596042,0.0002,2]
[403779466,1769536239154,-250.0,0.0002,2]
[403779468,1769536239165,-250.0,0.0002,2]
[403779470,1769536239175,-250.0,0.0002,2]
[403779472,1769536239184,-250.0,0.0002,2]
[403779474,1769536239193,-250.0,0.0002,2]
[403779476,1769536239203,-250.0,0.0002,2]
[403779478,1769536239212,-250.0,0.0002,2]
[403779480,1769536239222,-250.0,0.0002,2]
[403779482,1769536239232,-217.6,0.0002,2]
[403779484,1769536239240,-384814.34714773,0.0002,2]
[403779486,1769536239249,-151.0,0.0002,2]
[403779488,1769536239259,-151.0,0.0002,2]
[403779490,1769536239268,-151.0,0.0002,2]
[403779492,1769536239277,-151.0,0.0002,2]
[403779494,1769536239286,-151.0,0.0002,2]
[403779496,1769536239296,-151.0,0.0002,2]
[403779498,1769536239305,-151.0,0.0002,2]
[403779500,1769536239314,-151.0,0.0002,2]
[403779502,1769536239324,-151.0,0.0002,2]
[403779504,1769536239333,-151.0,0.0002,2]
[403779508,1769536239343,-151.0,0.0002,2]
[403779511,1769536239352,-151.0,0.0002,2]
[403779514,1769536239362,-151.0,0.0002,2]
[403779517,1769536239371,-151.0,0.0002,2]
[403779519,1769536239381,-151.0,0.0002,2]
[403779523,1769536239391,-151.0,0.0002,2]
[403779525,1769536239401,-229.808374,0.0002,2]
[403779527,1769536239410,-151.0,0.0002,2]
[403779530,1769536239419,-151.0,0.0002,2]
[403779533,1769536239429,-151.0,0.0002,2]
[403779537,1769536239438,-151.0,0.0002,2]
[403779539,1769536239447,-151.0,0.0002,2]
[403779541,1769536239456,-151.0,0.0002,2]
[403779543,1769536239465,-151.0,0.0002,2]
[403779545,1769536239474,-151.0,0.0002,2]
[403779547,1769536239484,-152.972032,0.0002,2]
[403779549,1769536239493,-151.0,0.0002,2]
[403779550,1769536239503,-151.0,0.0002,2]
[403779551,1769536239512,-151.0,0.0002,2]
[403779552,1769536239521,-217.941002,0.0002,2]
[403779553,1769536239530,-151.0,0.0002,2]
[403779554,1769536239539,-153.402217,0.0002,2]
[403779555,1769536239548,-151.0,0.0002,2]
[403779556,1769536239557,-151.0,0.0002,2]
[403779557,1769536239566,-196.085023,0.0002,2]
[403779558,1769536239575,-151.69617,0.0002,2]
[403779559,1769536239584,-291.914687,0.0002,2]
[403779560,1769536239594,-151.0,0.0002,2]
[403779561,1769536239603,-151.0,0.0002,2]
[403779562,1769536239613,-151.0,0.0002,2]
[403779563,1769536239622,-151.0,0.0002,2]
[403779564,1769536239631,-151.0,0.0002,2]
[403779565,1769536239640,-151.0,0.0002,2]
[403779566,1769536239651,-151.0,0.0002,2]
[403779567,1769536239660,-151.0,0.0002,2]
[403779568,1769536239669,-151.0,0.0002,2]
[403779569,1769536239679,-151.0,0.0002,2]
[403779570,1769536239688,-151.0,0.0002,2]
[403779571,1769536239698,-151.0,0.0002,2]
[403779572,1769536239707,-151.0,0.0002,2]
[403779573,1769536239717,-151.0,0.0002,2]
[403779574,1769536239726,-151.0,0.0002,2]
[403779575,1769536239736,-162.442946,0.0002,2]
[403779576,1769536239746,-183.032175,0.0002,2]
[403779577,1769536239755,-183.032175,0.0002,2]
[403779578,1769536239764,-183.032175,0.0002,2]
[403779579,1769536239774,-183.032175,0.0002,2]
[403779580,1769536239784,-183.032175,0.0002,2]
[403779581,1769536239793,-183.032175,0.0002,2]
[403779582,1769536239803,-183.032175,0.0002,2]
[403779583,1769536239811,-183.032175,0.0002,2]
[403779584,1769536239821,-183.032175,0.0002,2]
[403779585,1769536239830,-151.0,0.0002,2]
[403779586,1769536239840,-183.032175,0.0002,2]
[403779587,1769536239849,-151.0,0.0002,2]
[403779588,1769536239859,-183.032175,0.0002,2]
[403779589,1769536239868,-151.0,0.0002,2]
[403779590,1769536239877,-151.0,0.0002,2]
[403779591,1769536239887,-183.032175,0.0002,2]
[403779592,1769536239899,-208.394871,0.0002,2]
[403779593,1769536239908,-183.032175,0.0002,2]
[403779594,1769536239918,-183.032175,0.0002,2]
[403779595,1769536239927,-183.032175,0.0002,2]
[403779596,1769536239936,-183.032175,0.0002,2]
[403779597,1769536239945,-151.0,0.0002,2]
[403779598,1769536239955,-151.0,0.0002,2]
[403779599,1769536239965,-151.0,0.0002,2]
[403779600,1769536239975,-151.0,0.0002,2]
[403779601,1769536239985,-151.0,0.0002,2]
[403779602,1769536239995,-151.0,0.0002,2]
[403779603,1769536240005,-151.0,0.0002,2]
[403779604,1769536240014,-153.733115,0.0002,2]
[403779606,1769536240024,-197.582947,0.0002,2]
[403779607,1769536240034,-197.582947,0.0002,2]
[403779608,1769536240047,-197.582947,0.0002,2]
[403779609,1769536240057,-197.582947,0.0002,2]
[403779610,1769536240067,-197.582947,0.0002,2]
[403779611,1769536240076,-197.582947,0.0002,2]
[403779612,1769536240087,-197.582947,0.0002,2]
[403779613,1769536240097,-197.582947,0.0002,2]
[403779614,1769536240106,-197.582947,0.0002,2]
[403779615,1769536240116,-151.0,0.0002,2]
[403779616,1769536240127,-151.0,0.0002,2]
[403779617,1769536240136,-170.482931,0.0002,2]
[403779618,1769536240148,-151.0,0.0002,2]
[403779619,1769536240157,-151.0,0.0002,2]
[403779620,1769536240167,-151.0,0.0002,2]
[403779621,1769536240176,-151.0,0.0002,2]
[403779622,1769536240185,-151.0,0.0002,2]
[403779623,1769536240195,-151.0,0.0002,2]
[403779624,1769536240206,-151.0,0.0002,2]
[403779625,1769536240215,-151.0,0.0002,2]
[403779626,1769536240225,-199.924162,0.0002,2]
[403779627,1769536240235,-199.924162,0.0002,2]
[403779628,1769536240245,-199.924162,0.0002,2]
[403779629,1769536240255,-2618.982771,0.0002,2]
[403779630,1769536240264,-199.924162,0.0002,2]
[403779631,1769536240273,-2618.982771,0.0002,2]
[403779632,1769536240283,-2618.982771,0.0002,2]
[403779633,1769536240292,-199.924162,0.0002,2]
[403779634,1769536240301,-2618.982771,0.0002,2]
[403779635,1769536240311,-199.924162,0.0002,2]
[403779636,1769536240320,-199.924162,0.0002,2]
[403779637,1769536240330,-2618.982771,0.0002,2]
[403779638,1769536240339,-199.924162,0.0002,2]
[403779639,1769536240349,-2618.982771,0.0002,2]
[403779640,1769536240359,-2618.982771,0.0002,2]
[403779641,1769536240368,-199.924162,0.0002,2]
[403779642,1769536240378,-2618.982771,0.0002,2]
[403779643,1769536240387,-199.924162,0.0002,2]
[403779644,1769536240398,-199.924162,0.0002,2]
[403779645,1769536240409,-2618.982771,0.0002,2]
[403779646,1769536240418,-199.924162,0.0002,2]
[403779647,1769536240427,-2618.982771,0.0002,2]
[403779648,1769536240437,-2618.982771,0.0002,2]
[403779649,1769536240447,-199.924162,0.0002,2]
[403779650,1769536240457,-2618.982771,0.0002,2]
[403779651,1769536240466,-199.924162,0.0002,2]
[403779652,1769536240475,-199.924162,0.0002,2]
[403779653,1769536240485,-2618.982771,0.0002,2]
[403779654,1769536240495,-199.924162,0.0002,2]
[403779655,1769536240504,-2618.982771,0.0002,2]
[403779656,1769536240514,-2618.982771,0.0002,2]
[403779657,1769536240523,-2618.982771,0.0002,2]
[403779658,1769536240533,-1110.572505,0.0002,2]
[403779659,1769536240542,-1110.572505,0.0002,2]
[403779660,1769536240552,-1110.572505,0.0002,2]
[403779661,1769536240564,-1110.572505,0.0002,2]
[403779662,1769536240573,-1110.572505,0.0002,2]
[403779663,1769536240582,-1110.572505,0.0002,2]
[403779664,1769536240592,-1110.572505,0.0002,2]
[403779665,1769536240602,-1110.572505,0.0002,2]
[403779666,1769536240612,-1110.572505,0.0002,2]
[403779667,1769536240621,-1110.572505,0.0002,2]
[403779669,1769536240631,-1110.572505,0.0002,2]
[403779671,1769536240641,-1110.572505,0.0002,2]
[403779673,1769536240653,-1110.572505,0.0002,2]
[403779674,1769536240663,-1110.572505,0.0002,2]
[403779676,1769536240672,-1110.572505,0.0002,2]
[403779677,1769536240681,-1110.572505,0.0002,2]
[403779679,1769536240691,-151.0,0.0002,2]
[403779681,1769536240700,-151.0,0.0002,2]
[403779682,1769536240710,-151.0,0.0002,2]
[403779683,1769536240719,-151.0,0.0002,2]
[403779684,1769536240729,-178.671989,0.0002,2]
[403779685,1769536240738,-151.0,0.0002,2]
[403779686,1769536240748,-151.0,0.0002,2]
[403779687,1769536240757,-151.0,0.0002,2]
[403779688,1769536240766,-151.0,0.0002,2]
[403779689,1769536240775,-151.0,0.0002,2]
[403779690,1769536240784,-151.0,0.0002,2]
[403779691,1769536240794,-1000.0,0.0002,5]
[403779692,1769536240803,-298.043263,0.0002,2]
[403779693,1769536240813,-298.043263,0.0002,2]
[403779694,1769536240822,-298.043263,0.0002,2]
[403779696,1769536240831,-298.043263,0.0002,2]
[403779698,1769536240840,-298.043263,0.0002,2]
[403779699,1769536240849,-298.043263,0.0002,2]
[403779701,1769536240858,-298.043263,0.0002,2]
[403779703,1769536240867,-298.043263,0.0002,2]
[403779705,1769536240877,-298.043263,0.0002,2]
[403779706,1769536240886,-298.043263,0.0002,2]
[403779708,1769536240895,-298.043263,0.0002,2]
[403779709,1769536240905,-298.043263,0.0002,2]
[403779711,1769536240914,-151.0,0.0002,2]
[403779712,1769536240923,-298.043263,0.0002,2]
[403779713,1769536240933,-151.0,0.0002,2]
[403779714,1769536240945,-298.043263,0.0002,2]
[403779715,1769536240955,-151.0,0.0002,2]
[403779716,1769536240964,-298.043263,0.0002,2]
[403779717,1769536240973,-172.096444,0.0002,2]
[403779718,1769536240983,-298.043263,0.0002,2]
[403779719,1769536240992,-151.0,0.0002,2]
[403779720,1769536241002,-151.0,0.0002,2]
[403779721,1769536241011,-151.0,0.0002,2]
[403779722,1769536241021,-151.0,0.0002,2]
[403779723,1769536241031,-151.0,0.0002,2]
[403779724,1769536241042,-151.0,0.0002,2]
[403779725,1769536241051,-151.0,0.0002,2]
[403779726,1769536241060,-151.0,0.0002,2]
[403779727,1769536241070,-151.0,0.0002,2]
[403779728,1769536241079,-151.0,0.0002,2]
[403779729,1769536241091,-151.0,0.0002,2]
[403779730,1769536241100,-151.0,0.0002,2]
[403779731,1769536241110,-151.0,0.0002,2]
[403779732,1769536241120,-151.0,0.0002,2]
[403779733,1769536241130,-187.419477,0.0002,2]
[403779734,1769536241140,-224.360219,0.0002,2]
[403779735,1769536241151,-224.360219,0.0002,2]
[403779736,1769536241160,-224.360219,0.0002,2]
[403779737,1769536241169,-224.360219,0.0002,2]
[403779738,1769536241179,-224.360219,0.0002,2]
[403779739,1769536241188,-224.360219,0.0002,2]
[403779740,1769536241197,-224.360219,0.0002,2]
[403779741,1769536241206,-224.360219,0.0002,2]
[403779742,1769536241216,-224.360219,0.0002,2]
[403779743,1769536241226,-224.360219,0.0002,2]
[403779744,1769536241236,-224.360219,0.0002,2]
[403779745,1769536241245,-224.360219,0.0002,2]
[403779746,1769536241255,-276.802729,0.0002,2]
[403779747,1769536241264,-224.360219,0.0002,2]
[403779748,1769536241273,-224.360219,0.0002,2]
[403779749,1769536241283,-224.360219,0.0002,2]
[403779750,1769536241293,-224.360219,0.0002,2]
[403779751,1769536241302,-1422.757952,0.0002,2]
[403779752,1769536241312,-1422.757952,0.0002,2]
[403779753,1769536241322,-1422.757952,0.0002,2]
[403779754,1769536241332,-1422.757952,0.0002,2]
[403779755,1769536241341,-1422.757952,0.0002,2]
[403779756,1769536241350,-1422.757952,0.0002,2]
[403779757,1769536241360,-1422.757952,0.0002,2]
[403779758,1769536241369,-1422.757952,0.0002,2]
[403779759,1769536241378,-1422.757952,0.0002,2]
[403779760,1769536241387,-1422.757952,0.0002,2]
[403779761,1769536241398,-1422.757952,0.0002,2]
[403779762,1769536241408,-1422.757952,0.0002,2]
[403779763,1769536241417,-1422.757952,0.0002,2]
[403779764,1769536241427,-1422.757952,0.0002,2]
[403779765,1769536241436,-1422.757952,0.0002,2]
[403779766,1769536241447,-1422.757952,0.0002,2]
[403779767,1769536241456,-151.0,0.0002,2]
[403779768,1769536241465,-151.0,0.0002,2]
[403779769,1769536241474,-151.782866,0.0002,2]
[403779770,1769536241484,-1000.0,0.0002,2]
[403779771,1769536241494,-250.0,0.0002,10]
[403779772,1769536241504,-150.0,0.0002,2]
[403779773,1769536241513,-4262.748023,0.0002,2]
[403779774,1769536241523,-4262.748023,0.0002,2]
[403779775,1769536241531,-4262.748023,0.0002,2]
[403779776,1769536241541,-4262.748023,0.0002,2]
[403779777,1769536241550,-4262.748023,0.0002,2]
[403779778,1769536241559,-4262.748023,0.0002,2]
[403779779,1769536241569,-4262.748023,0.0002,2]
[403779780,1769536241579,-4262.748023,0.0002,2]
[403779781,1769536241589,-4262.748023,0.0002,2]
[403779782,1769536241599,-4262.748023,0.0002,2]
[403779783,1769536241610,-4262.748023,0.0002,2]
[403779784,1769536241620,-4262.748023,0.0002,2]
[403779785,1769536241630,-4262.748023,0.0002,2]
[403779786,1769536241640,-4262.748023,0.0002,2]
[403779787,1769536241652,-4262.748023,0.0002,2]
[403779788,1769536241661,-4262.748023,0.0002,2]
[403779789,1769536241671,-234.857749,0.0002,2]
[403779790,1769536241680,-151.0,0.0002,2]
[403779791,1769536241691,-234.857749,0.0002,2]
[403779792,1769536241701,-151.0,0.0002,2]
[403779793,1769536241711,-234.857749,0.0002,2]
[403779794,1769536241722,-151.0,0.0002,2]
[403779795,1769536241732,-234.857749,0.0002,2]
[403779796,1769536241741,-151.0,0.0002,2]